Cogmind - Beta 11 X5 @@@ ROGUE MODE // 2021.06.08 @ 13:57:38 Player: Captain Croissandwich Result: Destroyed by as-07378 with Assembled Maul Performance ------------- Evolutions (0) 0 Regions Visited (3) 600 Robots Destroyed (17) 85 Value Destroyed (219) 219 Prototype IDs (2) 40 Alien Tech Used (0) 0 Bonus (51) 51 TOTAL SCORE: 995 Bonus ------- Follower Combat Kills 60 Friendly Fire -9 Cogmind --------- Core Integrity 0/250 Matter 290/300 Energy 100/100 System Corruption 0% Temperature Cool (0) Movement Rolling (110) Ox2 Location -10/Exiles Parts ------- > --- POWER (1) -------- (None) > --- PROPULSION (2) --- Wheel > --- UTILITY (2) ------ Large Storage Unit Signal Interpreter > --- WEAPON (2) ------- Great Maul > --- INVENTORY (15) --- Ion Engine Heat Sink Heat Sink Structural Scanner Experimental Sensor Array Targeting Computer Core Shielding Light Armor Plating System Shield Tractor Beam Pulse Rifle Assault Rifle Light Assault Rifle Rocket Launcher Peak State ------------ > --- POWER ------------ Ion Engine > --- PROPULSION ------- Light Treads Light Treads > --- UTILITY ---------- Large Storage Unit Signal Interpreter > --- WEAPON ----------- Light Assault Rifle Great Maul > --- INVENTORY -------- Light Ion Engine Wheel Compact Wheel Heat Sink Heat Sink Structural Scanner Experimental Sensor Array Targeting Computer Propulsion Shielding System Shield Tractor Beam Assault Rifle Light Assault Rifle Rocket Launcher [Rating: 11] Favorites ----------- Power Ion Engine Engine Ion Engine Propulsion Light Treads Treads Light Treads Wheel Wheel Utility Large Storage Unit Storage Large Storage Unit Processor Signal Interpreter Weapon Light Assault Rifle Ballistic Gun Light Assault Rifle Launcher Rocket Launcher Impact Weapon Great Maul Build | -11 -10 -10 -10 ------- Run | Scr Mat Min Exi Slots Evolved . | . . . . Power . | . . . . Propulsion . | . . . . Utility . | . . . . Weapon . | . . . . Parts Attached 18 | 6 5 6 1 Power 5 | 1 1 3 . Engine 5 | 1 1 3 . Core . | . . . . Reactor . | . . . . Propulsion 4 | 2 1 . 1 Treads 3 | 2 1 . . Leg . | . . . . Wheel 1 | . . . 1 Hover . | . . . . Flight . | . . . . Utility 3 | 1 2 . . Device . | . . . . Storage 2 | 1 1 . . Processor 1 | . 1 . . Hackware . | . . . . Protection . | . . . . Artifact . | . . . . Weapon 6 | 2 1 3 . Energy Gun . | . . . . Energy Cannon . | . . . . Ballistic Gun 3 | 2 1 . . Ballistic Cannon . | . . . . Launcher 1 | . . 1 . Special Weapon . | . . . . Impact Weapon 2 | . . 2 . Slashing Weapon . | . . . . Piercing Weapon . | . . . . Special Melee Weapon . | . . . . Unidentified Prototypes . | . . . . Parts Lost 5 | . . 1 4 Power 2 | . . 1 1 Propulsion 2 | . . . 2 Utility . | . . . . Weapon 1 | . . . 1 Highest Loss Streak 4 | . . 1 4 Average Slot Usage (%) 97 | . 95 99 96 Engine 13 | . 13 13 13 Treads 27 | . 27 28 25 Storage 14 | . 14 14 14 Processor 12 | . 10 14 14 Ballistic Gun 21 | . 27 16 13 Impact Weapon 5 | . . 9 14 Naked Turns . | . . . . Heaviest Build 30 | 13 28 30 30 Greatest Support 40 | 40 40 40 40 Greatest Overweight (x) 2 | . . . 2 Average Overweight (x) . | . . . . Largest Inventory Capacity 15 | 8 15 15 15 Average Capacity 14 | 7 14 15 15 Most Carried 15 | 5 10 15 15 Average Carried 10 | 3 7 14 14 Final Capacity 15 | 8 15 15 15 Final Carried 15 | 5 10 15 14 Class Distribution -------------------- 100% | Mutant Dominant Class ---------------- Mutant | -10/Materials Mutant | -10/Mines Mutant | -10/Exiles Resources | -11 -10 -10 -10 ----------- Run | Scr Mat Min Exi Matter Collected 546 | 247 206 93 . Remotely . | . . . . Salvage Created 720 | 76 416 228 . Parts 33 | 3 28 2 . Haulers Intercepted 1 | . 1 . . Recyclers Shooed 1 | . . 1 . Parts Field Recycled . | . . . . Retrieved Matter . | . . . . Parts Self-Destructed . | . . . . Prevented . | . . . . Kills | -11 -10 -10 -10 ------- Run | Scr Mat Min Exi Combat Hostiles Destroyed 9 | . 7 2 . Melee 2 | . . 2 . Guns 7 | . 7 . . Classes Destroyed 7 | 1 4 2 . Builder 1 | . . 1 . Hauler 1 | . 1 . . Recycler 5 | 1 2 2 . Watcher 3 | . 3 . . Swarmer 6 | . 6 . . Grunt 1 | . 1 . . Assembled 2 | . . 2 . Best Kill Streak 3 | 1 3 2 . Combat Bots Only 3 | . 3 2 . Max Kills in Single Turn 1 | 1 1 1 . Gunslinging . | . . . . Exploded . | . . . . Melee 1 | . . 1 . Uniques/NPCs Destroyed . | . . . . Combat | -11 -10 -10 -10 -------- Run | Scr Mat Min Exi Damage Taken 959 | . 185 145 629 Core 253 | . 33 17 203 Absorbed by Shields . | . . . . Core Remaining (%) 100 | 100 . . . Volleys Fired 49 | . 41 7 1 Largest 2 | . 2 2 1 Hottest 40 | . 40 40 20 Shots Fired 91 | . 82 8 1 Gun 89 | . 82 6 1 Cannon . | . . . . Launcher 2 | . . 2 . Special . | . . . . Kinetic 89 | . 82 6 1 Thermal . | . . . . Explosive 2 | . . 2 . Electromagnetic . | . . . . Robot Hit Streak 6 | . 6 1 1 Robot Miss Streak 5 | . 5 4 . Penetration Max . | . . . . Secondary Targets 3 | . 3 . . Max Gunslinging Chain 1 | . 1 . . Shots Hit Robots 50 | . 40 9 1 Core Hits 27 | 1 21 5 . Critical Kills . | . . . . Critical Parts Destroyed . | . . . . Critical Strikes . | . . . . Melee Attacks 9 | . . 9 . Impact 9 | . . 9 . Slashing . | . . . . Piercing . | . . . . Sneak Attacks 3 | . . 3 . Combat Hostiles . | . . . . Follow-up Attacks . | . . . . Damage Inflicted 951 | 8 498 436 9 Guns 523 | . 498 16 9 Cannons . | . . . . Explosions 49 | . . 49 . Melee 371 | . . 371 . Ramming 8 | 8 . . . Kinetic 523 | . 498 16 9 Thermal . | . . . . Explosive 49 | . . 49 . Electromagnetic . | . . . . Impact 371 | . . 371 . Slashing . | . . . . Piercing . | . . . . Highest Corruption . | . . . . Average Corruption . | . . . . Corruption Purged . | . . . . Overload Shots . | . . . . Overflow Damage 86 | . . 86 . Projectiles . | . . . . Explosions . | . . . . Melee 86 | . . 86 . Knockbacks 1 | . . 1 . Impact 1 | . . 1 . Kinetic . | . . . . Secondary . | . . . . Self-Inflicted Damage . | . . . . Shots . | . . . . Rammed 4 | 4 . . . Targets Rammed 5 | 5 . . . Kicked . | . . . . Crushed 1 | 1 . . . Highest Temperature 22 | . 6 22 . Average Temperature 11 | . 6 17 . Received Heat Transfer 117 | . 18 99 . Siege Activations . | . . . . Robots Corrupted . | . . . . Combat Hostiles . | . . . . Parts Fried 4 | . . 4 . Impact Corruptions 5 | . . 5 . Robots Melted . | . . . . Combat Hostiles . | . . . . Parts Melted . | . . . . Heat Transferred . | . . . . Parts Sabotaged . | . . . . Parts Stolen . | . . . . Parts Stripped . | . . . . Power Chain Reactions . | . . . . Missiles Intercepted . | . . . . Alert | -11 -10 -10 -10 ------- Run | Scr Mat Min Exi Peak Influence 291 | 5 291 60 . Initial 13 | . 3 13 . Average 51 | 2 84 22 . Maximum Alert Level 1 | . 1 . . Low Security (%) 94 | 100 88 100 . Level 1 5 | . 11 . . Level 2 . | . . . . Level 3 . | . . . . Level 4 . | . . . . Level 5 . | . . . . High Security . | . . . . Max Security . | . . . . Squads Dispatched 4 | . 3 1 . Investigation 3 | . 2 1 . Extermination . | . . . . Reinforcement 1 | . 1 . . Assault . | . . . . Garrison . | . . . . Intercept . | . . . . Construction Impeded . | . . . . Haulers Reinforced . | . . . . Cargo Convoy Interrupts . | . . . . Stealth | -11 -10 -10 -10 --------- Run | Scr Mat Min Exi Distress Signals 3 | . 3 . . Communications Jammed . | . . . . Distress Signals . | . . . . Times Spotted 47 | . 24 6 17 Peak Tracking Total 13 | . 5 2 13 Tactical Retreats 4 | . 1 1 2 Traps | -11 -10 -10 -10 ------- Run | Scr Mat Min Exi Traps Triggered . | . . . . Indirectly . | . . . . Trap Hack Attempts . | . . . . Triggered . | . . . . Disarmed . | . . . . Reprogrammed . | . . . . Reused . | . . . . Traps Extracted . | . . . . Installed . | . . . . Triggered . | . . . . Machines | -11 -10 -10 -10 ---------- Run | Scr Mat Min Exi Machines Disabled 4 | . . 4 . Max in Single Turn 4 | . . 4 . Machines Sabotaged . | . . . . Garrisons Compromised . | . . . . Overloaded Fab Kills . | . . . . Fab Network Shutdowns . | . . . . Hacking | -11 -10 -10 -10 --------- Run | Scr Mat Min Exi Machines Accessed 11 | . 10 1 . Terminals 7 | . 7 . . Fabricators . | . . . . Repair Stations 1 | . 1 . . Recycling Units 2 | . 2 . . Scanalyzers . | . . . . Garrison Access . | . . . . Total Hacks 44 | . 43 1 . Successful 35 | . 34 1 . Failed 9 | . 9 . . Catastrophic 2 | . 2 . . Database Lockouts . | . . . . Manual 27 | . 27 . . Terminals 26 | . 26 . . Fabricators . | . . . . Repair Stations 10 | . 10 . . Recycling Units 7 | . 7 . . Scanalyzers . | . . . . Garrison Access . | . . . . Terminal Hacks 13 | . 12 1 . Part Schematic 1 | . 1 . . Robot Analysis 2 | . 2 . . Prototype ID Bank 1 | . 1 . . Open Door 1 | . . 1 . Emergency Access Points 1 | . 1 . . Terminal Index 1 | . 1 . . Recycling Unit Index 1 | . 1 . . Dispatch Records 1 | . 1 . . Patrol Status 1 | . 1 . . Recall Investigation 1 | . 1 . . Registered Components 1 | . 1 . . Zone Layout 1 | . 1 . . Fabricator Hacks . | . . . . Repair Station Hacks 9 | . 9 . . Scan Component 5 | . 5 . . Repair 4 | . 4 . . Recycling Unit Hacks 2 | . 2 . . Retrieve Components 2 | . 2 . . Scanalyzer . | . . . . Garrison Access Hacks . | . . . . Unauthorized Hacks 11 | . 11 . . Terminals 6 | . 6 . . Track 2 | . 2 . . Assimilate 1 | . 1 . . Botnet 3 | . 3 . . Fabricators . | . . . . Repair Stations . | . . . . Recycling Units 5 | . 5 . . Monitor 1 | . 1 . . Reject 1 | . 1 . . Mask 1 | . 1 . . Tunnel 2 | . 2 . . Scanalyzers . | . . . . Garrison Access . | . . . . Data Cores Recovered . | . . . . Used . | . . . . Hacking Detections 8 | . 8 . . Full Trace Events . | . . . . Feedback Events . | . . . . Feedback Blocked . | . . . . Robot Schematics Acquired . | . . . . Robots Built . | . . . . Matter . | . . . . Time . | . . . . Total Robot Build Rating . | . . . . Part Schematics Acquired 1 | . 1 . . Parts Built . | . . . . Matter . | . . . . Time . | . . . . Total Part Build Rating . | . . . . Parts Repaired 4 | . 4 . . Time 104 | . 104 . . Parts Recycled . | . . . . Recycled Matter . | . . . . Retrieved Matter . | . . . . Retrieved Components 9 | . 9 . . Parts Scanalyzed . | . . . . Part Schematics Acquired . | . . . . Parts Damaged . | . . . . Bothacking | -11 -10 -10 -10 ------------ Run | Scr Mat Min Exi Used RIF Installer . | . . . . Robots Hacked . | . . . . Non-combat . | . . . . Combat . | . . . . Robot Hacks Applied . | . . . . Relay Couplers Released . | . . . . Robots Rewired . | . . . . Allies Hacked . | . . . . Hacks Repelled . | . . . . Allies | -11 -10 -10 -10 -------- Run | Scr Mat Min Exi Total Allies 2 | . 1 1 . Largest Group 1 | . 1 1 . Highest-Rated Group 31 | . 10 31 . Highest-Rated Ally 31 | . 10 31 . Total Orders . | . . . . Ally Attacks 9 | . . 9 . Total Damage 86 | . . 86 . Kills 2 | . . 2 . Allies Corrupted . | . . . . Allies Melted . | . . . . Intel | -11 -10 -10 -10 ------- Run | Scr Mat Min Exi Robot Analysis Total 2 | . 2 . . Derelict Logs Recovered 1 | . . 1 . Drone Launches . | . . . . Drone Recoveries . | . . . . Exploration | -11 -10 -10 -10 ------------- Run | Scr Mat Min Exi Turns Passed 2803 | 111 1262 1273 157 Spaces Moved 1556 | 59 642 759 96 Core 4 | 4 . . . Treads 1547 | 55 642 759 91 Legs . | . . . . Wheels 5 | . . . 5 Hover . | . . . . Flight . | . . . . Fastest Speed 50 | 50 160 160 110 Average Speed 159 | 152 160 160 160 Slowest Speed 260 | 160 160 160 260 Overloaded Moves . | . . . . Propulsion Burnouts . | . . . . Robots Hopped . | . . . . Cave-ins Triggered . | . . . . Exploration Rate (%) 55 | 4 77 99 41 Regions Visited 3 Branch Regions 2 Pre-discovered Areas 2 | . 2 . . Known Exits Taken 2 | . 1 1 . Unknown Exits Taken 1 | 1 . . . Scrap Searched 1 | . . 1 . Spaces Dug 1 | . . 1 . Terrain Destroyed 13 | . . 13 . Melee 1 | . . 1 . Projectile . | . . . . AOE 12 | . . 12 . Terrain Rammed . | . . . . Walls Destroyed . | . . . . Machines Disabled . | . . . . Actions | -11 -10 -10 -10 --------- Run | Scr Mat Min Exi Total 1765 | 74 801 792 98 Wait 109 | . 107 2 . Move 1553 | 58 641 758 96 Hop . | . . . . Pick Up 18 | 5 6 7 . Fast Attach 11 | 6 5 . . Attach 2 | . . 1 1 Detach . | . . . . Swap 5 | . . 5 . Drop 4 | . 1 3 . Fire 49 | . 41 7 1 Melee 9 | . . 9 . Ram . | . . . . Kick . | . . . . Crush 5 | 5 . . . Escape Stasis . | . . . . Rewire . | . . . . Trap . | . . . . Miscellaneous . | . . . . Route ------- -11/Scrapyard -10/Materials (discovered 4 exits: [*Mat x2] / *Min x2) -10/Mines (discovered 3 exits: [*Mat x2] / *Exi) -10/Exiles History --------- Turn | Location | Event 2 | -11/Scrapyard | Met Revision 17 2 | -11/Scrapyard | Discovered new exit (range 16) 112 | -11/Scrapyard | Entered Materials 196 | -10/Materials | Discovered new exit (range 21) 314 | -10/Materials | Build established: Mutant 404 | -10/Materials | Discovered new exit (range 16) 599 | -10/Materials | Discovered new exit (range 7) 758 | -10/Materials | Discovered new exit (range 13) 792 | -10/Materials | Identified exit to Mines 1132 | -10/Materials | Repaired Ion Engine 1159 | -10/Materials | Repaired Lgt. Assault Rifle 1187 | -10/Materials | Repaired Tractor Beam 1214 | -10/Materials | Repaired Lgt. Treads 1374 | -10/Materials | Entered Mines 1374 | -10/Mines | Accompanied by 1 ally 1390 | -10/Mines | Met a Derelict shopkeep closing up shop 1446 | -10/Mines | Received a Rocket Launcher from a helpful Derelict 1466 | -10/Mines | Assembled infested the area 1590 | -10/Mines | Found a damaged Exp. Sensor Array with a note attached 1593 | -10/Mines | Found Prototype Device 1610 | -10/Mines | Discovered new exit (range 7) 1872 | -10/Mines | Deemed a non-threat by the Exiles lab entrance 1874 | -10/Mines | Discovered new exit (range 5) 1885 | -10/Mines | Identified exit to Exiles 2115 | -10/Mines | Received a Mining Laser from a helpful Derelict 2194 | -10/Mines | Discovered new exit (range 10) 2647 | -10/Mines | Entered Exiles 2686 | -10/Exiles | Met 8R-AWN 2711 | -10/Exiles | Met EX-HEX 2783 | -10/Exiles | Attacked by the Exiles 2800 | -10/Exiles | Core integrity fell below 50% 2802 | -10/Exiles | Core integrity fell below 20% 2804 | -10/Exiles | Destroyed by as-07378 with Assembled Maul Last Messages --------------- pattern or logic. It's almost like the early stages of some sort of... evolution. I'd love to just go ask the Imprinter what all this is about, she must know something, but I doubt that would end well. The Zionites will tell you those Marauders at the gates are defenses set up by Warlord... Nope, the Imprinter put them there mostly to keep us out! Anyway, I've got to get back to poking and prodding these nasty little guys. Go see BIN. I can't imagine you'll want to stay in our boring little cave for long, and we could use some help with the project in the back. 02783_ EXILES: Hostile robot within lab perimeter. Defensive protocols time, folks! 02789_ Lgt. Treads destroyed. 02791_ Lgt. Assault Rifle destroyed. 02795_ Lgt. Treads destroyed. 02796_ EX-BIN: "I just want to science!" 02797_ Ion Engine destroyed. 02799_ Knocked back. 02799_ EX-BIN system corrupted by crushing effect. Map ----- +----------------------------------------------------+ | ?????????????????????????????????????????????????? | | ?????????????????????????????????????????????????? | | ?????????????????????????????????????????????????? | | ?????????????????????????????????????????????????? | | ?????????????????????????????????????????????????? | | ?????????????????????????????????????????????????? | | ?????????????????????????????????????????????????? | | ?????????????????????????????????????????????????? | | ?????????????????????????????????????????????????? | | ?????????????????????????????????????????????????? | | ???????????????????????? ???????????????????????? | | ???????????????????????? ???????????????????????? | | ???????????????????????# ???????????????????????? | | ?????????????????????### ?#?????????????????????? | | ??????????????"""#####X# #"###???"""????????????? | | ?????????????? """""" " "????????????? | | ????????????? "" """ " ???????#### | | ????????????? " " ????? | | ???????????? ?? | | ????????????# ? | | ?????????????# ? | | ??????????????# ? | | ???????????????#" ??? | | ???????????????#""" """????? | | ??????????????##" #???????? | | ??????????????#"" @ ""#?????????#""" | | ???????????????""" a% """##??????????#""" | | ??????????????""" """##???????????#"""" | | ??????????????""" a""#???????????##"" | | ??????????????"" aa ########??####"""" | | ??????????????""" a a## ####""" | | ??????????????"" c % % """" | | ??????????????#""t a%% | | ??????????????#"""" | | ???????????????# % | | ????????????????" " "" | | ????????????????"""" ""## ##""" " " | | ?????????????????" ""#### ######""" | | ????????????????? """"##??# #????###" | | ?????????????????"" """#??## ####???## | | ?????????????????? ""##??#! "!#????? | | ??????????????????? """#????#" !#????? | | ????????????????????? ??????#" "#????? | | ??????????????????????? ???????#!!""!"#????? | | ????????????????????????? ????????########????? | | ?????????????????????????????????????????????????? | | ?????????????????????????????????????????????????? | | ?????????????????????????????????????????????????? | | ?????????????????????????????????????????????????? | | ?????????????????????????????????????????????????? | +----------------------------------------------------+ Best States ------------- Heat Dissipation 25 Energy Generation 10 Energy Capacity 250 Matter Stores 300 Matter Capacity 300 Sight Range 16 Terrain Scan Density 10 Evasion (%) 40 Recoil Reduction 2 Item Schematics ----------------- Hcp. Storage Unit | -10/Materials | Hacked Robot Schematics ------------------ None Fabricated ------------ Nothing Alien Tech Used ----------------- None Achievements -------------- None Challenges ------------ None Game ------ Seed FusionShadeSteel Manual? 0 Play Time 00:22:46 Cumulative 99.8 hours Start 2021.06.08 @ 13:34:20 End 2021.06.08 @ 13:57:38 Sessions 1 Manual Loads 0 Difficulty Rogue Special Mode None Game No. 73 Rogue 52 Adventurer 13 Explorer 8 Win Type - Total 4 Types 3/0/1/0/0/0/0/0/0 Lore% 72 Gallery% 72 Achievement% 53 Wizard Run 0 Options --------- ASCII 0 Keyboard 0 Movement Numpad Keybinds 0 Fullscreen 2 Font 18/SmallcapsGlow Map View 76x50 Tactical HUD 1 Map Filters NONE Filters NONE Steam 1 RUN: cb564895-853b-48c4-9c9a-c652ee122307